Cogmind - Beta 17 @@@ ROGUE MODE // 2026.07.22 @ 21:09:16 Player: Noggity Result: Destroyed by S-27 Virus with Autogun Performance ------------- Evolutions (4) 2000 Regions Visited (9) 1800 Robots Destroyed (33) 165 Value Destroyed (1125) 1125 Prototype IDs (30) 600 Alien Tech Used (0) 0 Bonus (300) 300 TOTAL SCORE: 5990 Bonus ------- Aligned with FarCom 300 Cogmind --------- Core Integrity 0/850 Matter 250/300 Energy 100/100 System Corruption 10% Temperature Cool (0) Movement Core (50) Location -6/Factory Parts ------- > --- POWER (2) -------- (None) > --- PROPULSION (5) --- (None) > --- UTILITY (5) ------ Improved Signal Interpreter > --- WEAPON (3) ------- (None) > --- INVENTORY (5) ---- Improved Carbon-fiber Leg Flexi-carbon Leg Large Storage Unit Peak State ------------ > --- POWER ------------ Nuclear Core Improved Deuterium Engine > --- PROPULSION ------- Improved Carbon-fiber Leg Improved Carbon-fiber Leg Improved Carbon-fiber Leg Light Armored Exoskeleton > --- UTILITY ---------- Improved Cooling System Large Storage Unit Advanced Targeting Computer Particle Charger Insulated Plating > --- WEAPON ----------- Ion Cannon Cooled Plasma Cannon Compact Ion Cannon > --- INVENTORY -------- Nuclear Core Improved Carbon-fiber Leg Improved Carbon-fiber Leg Improved Carbon-fiber Leg Improved Carbon-fiber Leg Advanced Targeting Computer Core Analyzer Transmission Jammer Hardened Medium Armor Plating Ion Cannon Proton Missile Launcher Mining Claw Scythe Deploy-a-Sentry Deploy-a-Sentry [Rating: 61] Favorites ----------- Power Ion Engine Engine Ion Engine Power Core Nuclear Core Propulsion Aluminum Leg Treads Light Treads Leg Aluminum Leg Wheel Wheel Hover Unit Improved Hover Unit Utility Large Storage Unit Device Particle Charger Storage Large Storage Unit Processor Signal Interpreter Protection Insulated Plating Weapon Particle Gun Energy Gun Particle Gun Energy Cannon Ion Cannon Ballistic Gun Assault Rifle Launcher Proton Missile Launcher Special Weapon Remote Datajack Slashing Weapon Mining Claw Build | -11 -10 -10 -10 -9 -8 -7 -6 -6 -6 ------- Run | Yrd Mat Min Exi Min Mat Fac Fac Was Fac Slots Evolved 8 | . . . . . 4 2 2 . . Power 1 | . . . . . 1 . . . . Propulsion 3 | . . . . . 2 . 1 . . Utility 3 | . . . . . 1 2 . . . Weapon 1 | . . . . . . . 1 . . Parts Attached 73 | 7 9 . 1 1 13 23 5 1 13 Power 9 | 1 1 . . . 4 1 . . 2 Engine 6 | 1 1 . . . 2 1 . . 1 Core 3 | . . . . . 2 . . . 1 Reactor . | . . . . . . . . . . Propulsion 23 | 2 2 . . . 3 9 2 1 4 Treads 2 | . 2 . . . . . . . . Leg 15 | 2 . . . . 3 5 2 1 2 Wheel 1 | . . . . . . . . . 1 Hover 5 | . . . . . . 4 . . 1 Flight . | . . . . . . . . . . Utility 23 | 2 2 . 1 1 3 7 1 . 6 Device 7 | 1 . . . . 2 3 . . 1 Storage 4 | 1 1 . . 1 1 . . . . Processor 7 | . 1 . 1 . . 2 1 . 2 Hackware . | . . . . . . . . . . Protection 5 | . . . . . . 2 . . 3 Artifact . | . . . . . . . . . . Weapon 18 | 2 4 . . . 3 6 2 . 1 Energy Gun 4 | 1 3 . . . . . . . . Energy Cannon 8 | . . . . . 2 4 2 . . Ballistic Gun 1 | 1 . . . . . . . . . Ballistic Cannon . | . . . . . . . . . . Launcher 2 | . . . . . 1 1 . . . Special Weapon 1 | . . . . . . 1 . . . Impact Weapon . | . . . . . . . . . . Slashing Weapon 2 | . 1 . . . . . . . 1 Piercing Weapon . | . . . . . . . . . . Special Melee Weapon . | . . . . . . . . . . Unidentified Prototypes 3 | . . . . . 1 . 2 . . Parts Lost 19 | . 1 . . . 1 4 . 1 12 Power 4 | . . . . . . 1 . . 3 Propulsion 5 | . . . . . . 2 . 1 2 Utility 7 | . . . . . 1 . . . 6 Weapon 3 | . 1 . . . . 1 . . 1 Highest Loss Streak 6 | . 1 . . . 1 2 . 1 6 To Critical Strikes . | . . . . . . . . . . Average Backups 8 | 1 9 8 6 5 7 11 12 12 6 Power 1 | . 1 2 1 1 1 1 1 1 . Propulsion 1 | 1 1 1 1 1 . 2 4 3 2 Utility 1 | . 2 1 . . 1 1 3 4 2 Weapon 3 | . 4 4 3 3 4 4 3 4 1 Tool/Special . | . . . . . . . . . . Unused Backups 21 | . 5 . . . 3 7 . . 6 Power 1 | . . . . . . 1 . . . Propulsion 3 | . 1 . . . . 1 . . 1 Utility 11 | . 3 . . . 1 2 . . 5 Weapon 6 | . 1 . . . 2 3 . . . Tool/Special . | . . . . . . . . . . Average Slot Usage (%) 90 | . 96 100 100 100 94 95 92 93 59 Engine 9 | . 14 14 14 14 9 6 6 6 4 Core 3 | . . . . . 6 7 6 6 2 Treads 2 | . 12 . . . . . . . . Leg 23 | . 15 28 28 28 34 21 26 26 15 Hover 1 | . . . . . . 5 . . . Device 6 | . . . . . 9 14 13 13 5 Storage 9 | . 14 14 14 14 9 7 6 6 2 Processor 9 | . 13 14 14 14 6 7 6 6 8 Protection 3 | . . . . . . 6 6 6 7 Energy Gun 7 | . 19 14 14 14 5 . . . . Energy Cannon 6 | . . . . . 7 12 19 20 6 Ballistic Gun 4 | . 5 14 14 14 3 . . . . Peak Build Rating 61 | 9 11 10 10 10 30 47 61 61 61 Average Rating 26 | 4 9 10 9 10 22 40 57 60 35 On Entrance 24 | . 9 10 10 10 10 27 46 61 61 Avg Prop Armor Cover (%) 9 | . 12 . . . . . . . 8 Naked Turns 5 | . . . . . . . . . 5 Heaviest Build 91 | 15 91 15 15 20 44 58 68 68 68 Greatest Support 84 | 20 40 20 20 20 47 72 84 84 84 Greatest Overweight (x) 4 | . 4 . . . . 2 . . 1 Average Overweight (x) . | . . . . . . . . . . Largest Inventory Capacity 25 | 8 25 8 8 10 15 15 15 15 15 Average Capacity 12 | 7 15 8 8 8 12 15 15 15 8 Most Carried 15 | 2 14 8 8 8 14 15 15 15 15 Average Carried 10 | 1 9 8 7 8 10 13 14 14 7 Final Capacity 15 | 8 8 8 8 10 15 15 15 15 5 Final Carried 15 | 2 8 8 8 8 14 14 15 14 3 Class Distribution -------------------- 82% | Mutant 14% | Gunner Dominant Class ---------------- Mutant | -10/Materials Mutant | -10/Mines Mutant | -10/Exiles Mutant | -9/Mines Mutant | -8/Materials Mutant | -7/Factory Gunner | -6/Factory Gunner | -6/Waste Mutant | -6/Factory Resources | -11 -10 -10 -10 -9 -8 -7 -6 -6 -6 ----------- Run | Yrd Mat Min Exi Min Mat Fac Fac Was Fac Matter Collected 1262 | 243 237 . . 45 196 267 123 . 151 Remotely . | . . . . . . . . . . Salvage Created 1317 | 134 274 . . 44 196 302 45 . 322 Parts 70 | 8 15 . . 1 15 19 3 . 9 Haulers Intercepted 1 | . . . . . 1 . . . . Recyclers Shooed 3 | . 3 . . . . . . . . Parts Field Recycled . | . . . . . . . . . . Retrieved Matter . | . . . . . . . . . . Parts Self-Destructed . | . . . . . . . . . . Prevented . | . . . . . . . . . . Parts Restored . | . . . . . . . . . . Kills | -11 -10 -10 -10 -9 -8 -7 -6 -6 -6 ------- Run | Yrd Mat Min Exi Min Mat Fac Fac Was Fac Combat Hostiles Destroyed 26 | . 9 . . 1 5 5 1 . 5 Guns 10 | . 9 . . 1 . . . . . Cannons 11 | . . . . . 2 5 1 . 3 AOE 4 | . . . . . 3 . . . 1 Classes Destroyed 12 | 2 3 . . . 4 2 . . 1 Builder 2 | . . . . . 1 1 . . . Tunneler 2 | 2 . . . . . . . . . Hauler 1 | . . . . . 1 . . . . Recycler 1 | 1 . . . . . . . . . Watcher 1 | . 1 . . . . . . . . Swarmer 7 | . 3 . . . 3 1 . . . Grunt 10 | . 6 . . 1 . . . . 3 Brawler 1 | . . . . . . . . . 1 Duelist 2 | . . . . . . 2 . . . Sentry 3 | . . . . . 1 1 . . 1 Hunter 1 | . . . . . 1 . . . . Programmer 2 | . . . . . . 1 1 . . Best Kill Streak 4 | 2 3 . . 1 3 4 1 . 4 Combat Bots Only 4 | . 3 . . 1 3 3 1 . 4 Max Kills in Single Turn 3 | 1 1 . . 1 3 1 1 . 1 Gunslinging . | . . . . . . . . . . Exploded 3 | . . . . . 3 . . . 1 Melee . | . . . . . . . . . . Uniques/NPCs Destroyed . | . . . . . . . . . . Combat | -11 -10 -10 -10 -9 -8 -7 -6 -6 -6 -------- Run | Yrd Mat Min Exi Min Mat Fac Fac Was Fac Hostile Shots Fired 510 | . 59 . . 12 33 55 2 2 347 Missed 197 | . 18 . . 3 7 18 . . 151 Hits 313 | . 41 . . 9 26 37 2 2 196 Melee 18 | . . . . . . 9 . 2 7 Projectile 295 | . 41 . . 9 26 28 2 . 189 Critical Strikes 16 | . 1 . . 1 2 2 1 . 9 Damage Taken 5141 | . 451 . . 135 421 557 31 77 3469 Core 1144 | . 74 . . 42 67 99 . . 862 Absorbed by Shields . | . . . . . . . . . . Ignored by Resistances 6 | . . . . . . 6 . . . Core Remaining (%) 81 | 100 . . . 53 87 85 . . . Volleys Fired 108 | 7 40 . . 5 21 22 1 . 12 Largest 3 | 2 2 . . 2 2 2 3 . 3 Hottest 210 | 70 130 . . 85 136 136 185 . 210 Shots Fired 198 | 14 69 . . 10 34 38 3 . 30 Gun 107 | 14 69 . . 10 14 . . . . Cannon 84 | . . . . . 19 35 3 . 27 Launcher 5 | . . . . . 1 1 . . 3 Special 2 | . . . . . . 2 . . . Kinetic 29 | 7 13 . . 5 4 . . . . Thermal 162 | 7 56 . . 5 29 35 3 . 27 Explosive 1 | . . . . . 1 . . . . Electromagnetic 4 | . . . . . . 1 . . 3 Robot Hit Streak 15 | 2 9 . . 5 6 9 6 . 15 Robot Miss Streak 3 | 3 3 . . 2 2 2 . . 3 Penetration Max . | . . . . . . . . . . Secondary Targets . | . . . . . . . . . . Shots Hit Robots 118 | 8 42 . . 6 19 26 1 . 16 Core Hits 56 | 4 17 . . 2 11 9 1 . 12 Critical Kills 1 | . . . . . . . . . 1 Critical Parts Destroyed . | . . . . . . . . . . Critical Strikes 2 | 1 . . . . . . . . 1 Burn 1 | 1 . . . . . . . . . Meltdown 1 | . . . . . . . . . 1 Melee Attacks 10 | . 2 . . . 2 3 . . 3 Impact . | . . . . . . . . . . Slashing 10 | . 2 . . . 2 3 . . 3 Piercing . | . . . . . . . . . . Sneak Attacks . | . . . . . . . . . . Combat Hostiles . | . . . . . . . . . . Follow-up Attacks . | . . . . . . . . . . Damage Inflicted 2924 | 121 627 . . 92 595 607 34 . 848 Guns 986 | 121 627 . . 92 146 . . . . Cannons 1359 | . . . . . 232 607 32 . 488 Explosions 484 | . . . . . 174 . . . 310 Melee . | . . . . . . . . . . Ramming 95 | . . . . . 43 . 2 . 50 Kinetic 221 | 70 99 . . 26 26 . . . . Thermal 2285 | 51 528 . . 66 352 607 32 . 649 Explosive 174 | . . . . . 174 . . . . Electromagnetic 149 | . . . . . . . . . 149 Impact . | . . . . . . . . . . Slashing . | . . . . . . . . . . Piercing . | . . . . . . . . . . Highest Corruption 11 | . . . . . 2 . . 10 11 Average Corruption 6 | . . . . . 2 . . 6 9 Corruption Purged 3 | . . . . . . . . . 3 Corruption Blocked . | . . . . . . . . . . Effects 53 | . . . . . 11 . . 5 37 Message Errors 14 | . . . . . 1 . . 3 10 Matter Fused 12 | . . . . . 4 . . 1 7 Heat Flow Errors 7 | . . . . . 1 . . . 6 Energy Discharges 4 | . . . . . 2 . . . 2 Parts Rejected 1 | . . . . . . . . . 1 Data Loss (minor) 6 | . . . . . 1 . . . 5 Data Loss (major) 3 | . . . . . 2 . . . 1 Alerts 1 | . . . . . . . . . 1 Misdirections 1 | . . . . . . . . 1 . Weapon Failures 4 | . . . . . . . . . 4 Overload Shots . | . . . . . . . . . . Overflow Damage 4 | . . . . . 4 . . . . Projectiles . | . . . . . . . . . . Explosions 4 | . . . . . 4 . . . . Melee . | . . . . . . . . . . Knockbacks . | . . . . . . . . . . Impact . | . . . . . . . . . . Kinetic . | . . . . . . . . . . Secondary . | . . . . . . . . . . Self-Inflicted Damage 135 | . . . . . 17 . . . 118 Shots 4 | . . . . . . . . . 4 Rammed 8 | . . . . . . . . . 8 Targets Rammed 12 | . . . . . 1 . 1 . 10 Kicked 4 | . . . . . 1 . 1 . 2 Crushed . | . . . . . . . . . . Highest Temperature 590 | 45 590 . . 183 445 444 54 . 412 Average Temperature 149 | 19 158 . . 100 130 230 30 . 155 Received Heat Transfer 1053 | . 171 . . 96 81 48 . . 657 Effects 21 | . 9 . . . 6 2 . . 4 Shutdowns 8 | . 2 . . . 3 1 . . 2 Energy Bleed 4 | . 1 . . . 1 1 . . 1 Interference 3 | . 2 . . . 1 . . . . Matter Decay 2 | . 1 . . . 1 . . . . Short Circuit 2 | . 1 . . . . . . . 1 Damage (minor) 2 | . 2 . . . . . . . . Siege Activations . | . . . . . . . . . . Martial Activations . | . . . . . . . . . . Shielding Activations . | . . . . . . . . . . Robots Disrupted . | . . . . . . . . . . Combat Hostiles . | . . . . . . . . . . Robots Corrupted . | . . . . . . . . . . Combat Hostiles . | . . . . . . . . . . Parts Fried . | . . . . . . . . . . Impact Corruptions . | . . . . . . . . . . Robots Melted 1 | . . . . . . . . . 1 Combat Hostiles 1 | . . . . . . . . . 1 Parts Melted 8 | . 1 . . . . 3 . . 4 Heat Transferred 4000 | 222 1258 . . 148 703 888 37 . 744 Parts Sabotaged . | . . . . . . . . . . Parts Stolen . | . . . . . . . . . . Parts Stripped . | . . . . . . . . . . Power Chain Reactions . | . . . . . . . . . . Alert | -11 -10 -10 -10 -9 -8 -7 -6 -6 -6 ------- Run | Yrd Mat Min Exi Min Mat Fac Fac Was Fac Maximum Alert Level 1 | . . . . . . . . . 1 Low Security (%) 99 | 100 100 100 . 100 100 100 100 100 99 Level 1 . | . . . . . . . . . . Level 2 . | . . . . . . . . . . Level 3 . | . . . . . . . . . . Level 4 . | . . . . . . . . . . Level 5 . | . . . . . . . . . . High Security . | . . . . . . . . . . Max Security . | . . . . . . . . . . Peak Influence 248 | 10 69 14 . 35 76 59 46 13 248 Initial 19 | . . 14 . . . . 19 13 . Average 21 | 1 16 2 . 2 13 7 3 2 80 Influence Increases 1310 | 15 250 . . 45 161 162 50 . 627 Destroy 0b10 Robot/C 520 | . 180 . . 20 100 100 20 . 100 Destroy 0b10 Robot/NC 35 | 15 5 . . . 10 5 . . . Destroy Leader 124 | . 32 . . 10 32 20 10 . 20 Successful Hack 34 | . 15 . . . 8 7 4 . . Disable Machine 105 | . . . . . . 30 15 . 60 Destroy Structure 42 | . 3 . . . 11 . 1 . 27 Partial Spotted 15 | . 15 . . . . . . . . Lose Combat Pursuer 435 | . . . . 15 . . . . 420 Influence Decreases 1068 | 15 213 37 . 45 161 121 53 38 385 Entered New Map 70 | . . 23 . . . . 22 25 . Time Decay 848 | 15 203 14 . 45 161 101 31 13 265 Lost Part 150 | . 10 . . . . 20 . . 120 Squads Dispatched 16 | . 1 . . . 2 2 2 . 9 Investigation 4 | . . . . . 1 . 1 . 2 Extermination 4 | . . . . . . 2 1 . 1 Reinforcement 6 | . 1 . . . 1 . . . 4 Assault 2 | . . . . . . . . . 2 Garrison . | . . . . . . . . . . Intercept . | . . . . . . . . . . Searches Triggered . | . . . . . . . . . . Construction Impeded 1 | . . . . . . . . . 1 Haulers Reinforced . | . . . . . . . . . . Active Scanning Responses . | . . . . . . . . . . Cargo Convoy Interrupts . | . . . . . . . . . . Stealth | -11 -10 -10 -10 -9 -8 -7 -6 -6 -6 --------- Run | Yrd Mat Min Exi Min Mat Fac Fac Was Fac Distress Signals 2 | . . . . . 1 . . . 1 Communications Jammed 2 | . . . . . . 2 . . . Distress Signals . | . . . . . . . . . . Times Spotted 92 | . 17 . . 4 14 6 1 6 44 Peak Tracking Total 21 | . 5 . . 2 4 3 1 6 21 Tactical Retreats 12 | . . . . 1 . . . . 11 Traps | -11 -10 -10 -10 -9 -8 -7 -6 -6 -6 ------- Run | Yrd Mat Min Exi Min Mat Fac Fac Was Fac Traps Triggered 6 | . . . . . . 1 2 . 3 Indirectly 1 | . . . . . . . . . 1 Trap Hack Attempts . | . . . . . . . . . . Triggered . | . . . . . . . . . . Disarmed . | . . . . . . . . . . Reprogrammed . | . . . . . . . . . . Reused . | . . . . . . . . . . Traps Extracted . | . . . . . . . . . . Installed . | . . . . . . . . . . Triggered . | . . . . . . . . . . Machines | -11 -10 -10 -10 -9 -8 -7 -6 -6 -6 ---------- Run | Yrd Mat Min Exi Min Mat Fac Fac Was Fac Machines Disabled 7 | . . . . . . 2 1 . 4 Max in Single Turn 4 | . . . . . . 1 1 . 4 Garrison Access 3 | . . . . . . 1 1 . 1 Machines Repaired . | . . . . . . . . . . Machines Dismantled . | . . . . . . . . . . Machines Sabotaged . | . . . . . . . . . . Overloaded Fab Kills . | . . . . . . . . . . Hacking | -11 -10 -10 -10 -9 -8 -7 -6 -6 -6 --------- Run | Yrd Mat Min Exi Min Mat Fac Fac Was Fac Machines Accessed 26 | . 5 . 2 . 3 4 5 . 7 Terminals 17 | . 5 . . . 3 2 3 . 4 Fabricators 1 | . . . . . . . 1 . . Repair Stations . | . . . . . . . . . . Recycling Units 3 | . . . . . . 1 . . 2 Scanalyzers . | . . . . . . . . . . Garrison Access 3 | . . . . . . 1 1 . 1 Total Hacks 76 | . 12 . 24 . 8 5 12 . 15 Successful 43 | . 6 . 24 . 3 3 5 . 2 Failed 33 | . 6 . . . 5 2 7 . 13 Catastrophic 13 | . 3 . . . 3 1 1 . 5 Database Lockouts . | . . . . . . . . . . Manual 25 | . 9 . 2 . 4 . 3 . 7 Terminals 40 | . 12 . . . 8 3 9 . 8 Fabricators 2 | . . . . . . . 2 . . Repair Stations . | . . . . . . . . . . Recycling Units 5 | . . . . . . 1 . . 4 Scanalyzers . | . . . . . . . . . . Garrison Access 5 | . . . . . . 1 1 . 3 Terminal Hacks 36 | . 3 . 24 . 3 2 3 . 1 Record 25 | . . . 23 . 1 . . . 1 Prototype ID Bank 2 | . 1 . . . . . 1 . . Open DSF 2 | . . . . . . 1 1 . . Branch Access Points 3 | . . . . . 2 . 1 . . Alert Level 1 | . 1 . . . . . . . . Transport Status 1 | . 1 . . . . . . . . Recall Investigation 1 | . . . . . . 1 . . . Proto ID Catalog 1 | . . . 1 . . . . . . Fabricator Hacks . | . . . . . . . . . . Repair Station Hacks . | . . . . . . . . . . Recycling Unit Hacks 1 | . . . . . . . . . 1 Retrieve Components 1 | . . . . . . . . . 1 Scanalyzer . | . . . . . . . . . . Garrison Access Hacks 2 | . . . . . . 1 1 . . Seal Access 2 | . . . . . . 1 1 . . Unauthorized Hacks 4 | . 3 . . . . . 1 . . Terminals 4 | . 3 . . . . . 1 . . Botnet 3 | . 2 . . . . . 1 . . Operators 1 | . 1 . . . . . . . . Fabricators . | . . . . . . . . . . Repair Stations . | . . . . . . . . . . Recycling Units . | . . . . . . . . . . Scanalyzers . | . . . . . . . . . . Garrison Access . | . . . . . . . . . . Data Cores Recovered . | . . . . . . . . . . Used . | . . . . . . . . . . Hacking Detections 21 | . 4 . . . 3 3 4 . 7 Full Trace Events 4 | . . . . . 1 . 1 . 2 Feedback Events . | . . . . . . . . . . Feedback Blocked . | . . . . . . . . . . Robot Schematics Acquired . | . . . . . . . . . . Robots Built . | . . . . . . . . . . Authchips . | . . . . . . . . . . Time . | . . . . . . . . . . Total Robot Build Rating . | . . . . . . . . . . Part Schematics Acquired . | . . . . . . . . . . Parts Built . | . . . . . . . . . . Authchips . | . . . . . . . . . . Time . | . . . . . . . . . . Total Part Build Rating . | . . . . . . . . . . Part Studies Acquired . | . . . . . . . . . . Parts Repaired . | . . . . . . . . . . Time . | . . . . . . . . . . Parts Recycled . | . . . . . . . . . . Recycled Matter . | . . . . . . . . . . Retrieved Matter . | . . . . . . . . . . Retrieved Components 1 | . . . . . . . . . 1 Parts Scanalyzed . | . . . . . . . . . . Part Schematics Acquired . | . . . . . . . . . . Parts Damaged . | . . . . . . . . . . Bothacking | -11 -10 -10 -10 -9 -8 -7 -6 -6 -6 ------------ Run | Yrd Mat Min Exi Min Mat Fac Fac Was Fac Used RIF Installer . | . . . . . . . . . . Robots Hacked 1 | . . . . . . 1 . . . Non-combat 1 | . . . . . . 1 . . . Combat . | . . . . . . . . . . Robot Hacks Applied 2 | . . . . . . 2 . . . parse_system 1 | . . . . . . 1 . . . find_chute 1 | . . . . . . 1 . . . Relay Couplers Released 2 | . . . . . . . . . 2 Machine Destruction 2 | . . . . . . . . . 2 Fabnet Peak Effective % . | . . . . . . . . . . Robots Rewired . | . . . . . . . . . . Allies Hacked . | . . . . . . . . . . Hacks Repelled . | . . . . . . . . . . Allies | -11 -10 -10 -10 -9 -8 -7 -6 -6 -6 -------- Run | Yrd Mat Min Exi Min Mat Fac Fac Was Fac Total Allies . | . . . . . . . . . . Largest Group . | . . . . . . . . . . Highest-Rated Group . | . . . . . . . . . . Highest-Rated Ally . | . . . . . . . . . . Total Orders . | . . . . . . . . . . Ally Attacks . | . . . . . . . . . . Total Damage . | . . . . . . . . . . Kills . | . . . . . . . . . . Allies Corrupted . | . . . . . . . . . . Allies Melted . | . . . . . . . . . . Intel | -11 -10 -10 -10 -9 -8 -7 -6 -6 -6 ------- Run | Yrd Mat Min Exi Min Mat Fac Fac Was Fac Active Infowar (turns) 421 | 10 28 . . . . 383 . . . Terrain 38 | 10 28 . . . . . . . . Jamming 383 | . . . . . . 383 . . . Robot Analysis Total . | . . . . . . . . . . Derelict Logs Recovered 3 | . . 1 . 2 . . . . . Drone Launches . | . . . . . . . . . . Drone Recoveries . | . . . . . . . . . . Exploration | -11 -10 -10 -10 -9 -8 -7 -6 -6 -6 ------------- Run | Yrd Mat Min Exi Min Mat Fac Fac Was Fac Turns Passed 5467 | 89 901 130 306 736 729 1060 451 143 922 Spaces Moved 3300 | 55 370 109 251 324 463 611 306 114 697 Core 85 | 15 . . . . . . . . 70 Treads 77 | . 77 . . . . . . . . Legs 2709 | 40 293 109 251 324 463 480 306 114 329 Wheels 192 | . . . . . . . . . 192 Hover 237 | . . . . . . 131 . . 106 Flight . | . . . . . . . . . . Fastest Speed 50 | 50 120 120 120 120 112 108 125 125 50 Average Speed 122 | 100 185 120 120 120 115 120 125 125 98 Slowest Speed 480 | 120 480 120 120 120 120 260 125 125 140 Overloaded Moves . | . . . . . . . . . . Propulsion Burnouts . | . . . . . . . . . . Robots Hopped . | . . . . . . . . . . Potential Cave-ins . | . . . . . . . . . . Cave-ins Triggered . | . . . . . . . . . . Exploration Rate (%) 39 | 4 66 19 62 63 42 13 11 82 28 Regions Visited 9 Branch Regions 3 Pre-discovered Areas 3 | . . . 1 2 . . . . . Known Exits Taken 4 | . . 1 1 1 . 1 . . . Unknown Exits Taken 3 | 1 1 . . . 1 . . . . Scrap Searched . | . . . . . . . . . . Spaces Dug 6 | . 1 . . . 2 . . . 3 Terrain Destroyed 48 | . 1 . . . 8 . . . 39 Melee 6 | . 1 . . . 2 . . . 3 Projectile 7 | . . . . . 2 . . . 5 AOE 35 | . . . . . 4 . . . 31 Terrain Rammed 1 | . . . . . 1 . . . . Walls Destroyed 1 | . . . . . 1 . . . . Machines Disabled . | . . . . . . . . . . Actions | -11 -10 -10 -10 -9 -8 -7 -6 -6 -6 --------- Run | Yrd Mat Min Exi Min Mat Fac Fac Was Fac Total 4509 | 72 515 108 257 661 618 893 372 114 899 Wait 863 | . 58 . . 331 97 186 51 . 140 Move 3292 | 54 369 108 250 323 462 610 306 113 697 Hop . | . . . . . . . . . . Pick Up 58 | 4 15 . 3 . 10 16 4 . 6 Fast Attach 40 | 5 3 . . . 4 16 2 . 10 Attach 24 | 2 4 . 1 . 1 5 3 1 7 Detach 12 | . 4 . 1 . . 2 1 . 4 Swap 32 | . 7 . . 1 11 7 2 . 4 Drop 57 | . 13 . 2 1 8 26 1 . 6 Fire 108 | 7 40 . . 5 21 22 1 . 12 Melee 10 | . 2 . . . 2 3 . . 3 Ram 9 | . . . . . 1 . . . 8 Kick 4 | . . . . . 1 . 1 . 2 Crush . | . . . . . . . . . . Escape Stasis . | . . . . . . . . . . Rewire . | . . . . . . . . . . Trap . | . . . . . . . . . . Miscellaneous . | . . . . . . . . . . Route ------- -11/Scrapyard -10/Materials (discovered 2 exits: [*Mat] / [*Min]) -10/Mines -10/Exiles (discovered 2 exits: *Min x2) -9/Mines -8/Materials -7/Factory -6/Factory (discovered 3 exits: *Low x2 / DSF) -6/Waste -6/Factory History --------- Turn | Location | Event 7 | -11/Scrapyard | Discovered new exit (range 16) 90 | -11/Scrapyard | Entered Materials 312 | -10/Materials | Build established: Mutant 577 | -10/Materials | Discovered new exit (range 11) 986 | -10/Materials | Discovered new exit (range 4) 991 | -10/Materials | Entered Mines 1005 | -10/Mines | Identified exit to Exiles 1042 | -10/Mines | Deemed a non-threat by the Exiles lab entrance 1121 | -10/Mines | Entered Exiles 1139 | -10/Exiles | Discovered new exit (range 15) 1174 | -10/Exiles | Met 8R-AWN 1189 | -10/Exiles | Met EX-HEX 1225 | -10/Exiles | Met EX-BIN 1243 | -10/Exiles | Aligned with FarCom system 1244 | -10/Exiles | Given EX-Vault access code 1285 | -10/Exiles | Opened EX-Vault 1298 | -10/Exiles | Found Deploy-a-Sentry 1301 | -10/Exiles | Found Deploy-a-Sentry 1304 | -10/Exiles | Found Deploy-a-Sentry 1327 | -10/Exiles | Warned to stay clear of 0b10 Research branches 1339 | -10/Exiles | Exiles lab attacked by MAIN.C 1373 | -10/Exiles | Learned location of Zion (-7) 1417 | -10/Exiles | Discovered new exit (range 10) 1426 | -10/Exiles | Identified exit to Mines 1427 | -10/Exiles | Left Exiles lab with Deploy-a-Sentry 1427 | -10/Exiles | Entered Mines 1863 | -9/Mines | Discovered new exit (range 10) 1872 | -9/Mines | Identified exit to Materials 2083 | -9/Mines | Assembled infested the area 2163 | -9/Mines | Entered Materials 2163 | -8/Materials | Evolved 4 slots: Power x1, Propulsion x2, Utility x1 2866 | -8/Materials | Discovered new exit (range 16) 2892 | -8/Materials | Entered Factory 2892 | -7/Factory | Evolved 2 slots: Utility x2 3593 | -7/Factory | Discovered new exit (range 9) 3658 | -7/Factory | Identified exit to Factory 3952 | -7/Factory | Entered another Factory area 3952 | -6/Factory | Evolved 2 slots: Propulsion x1, Weapon x1 4061 | -6/Factory | Identified exit to DSF 4155 | -6/Factory | Identified exit to Lower Caves 4289 | -6/Factory | Build established: Gunner 4403 | -6/Factory | Sucked down chute 4403 | -6/Factory | Entered Waste 4418 | -6/Waste | EMP discharged 4438 | -6/Waste | Spotted C-40 Crusher 4458 | -6/Waste | Spotted C-40 Crusher 4460 | -6/Waste | Spotted C-40 Crusher 4482 | -6/Waste | Spotted C-40 Crusher 4483 | -6/Waste | Spotted C-40 Crusher 4501 | -6/Waste | Spotted C-40 Crusher 4514 | -6/Waste | Crushed by Compactor (1 part destroyed) 4518 | -6/Waste | EMP discharged 4518 | -6/Waste | System corruption reached 10% 4532 | -6/Waste | Discovered new exit (range 10) 4546 | -6/Waste | Entered Factory 4903 | -6/Factory | Released all parts (10) 4929 | -6/Factory | Lost 4 parts (1p2u1w) 5029 | -6/Factory | Build established: Mutant 5203 | -6/Factory | Spotted B-75 Beast 5380 | -6/Factory | Core integrity fell below 50% 5455 | -6/Factory | Core integrity fell below 20% 5468 | -6/Factory | Lost 6 parts (1p2n3u) 5468 | -6/Factory | Destroyed by S-27 Virus with Autogun Last Messages --------------- 05408_ 4 82UA UWSFB=EK2YJL& 05410_ M-28 Smith repairs L-41 Fighter. 05412_ Critical hit (Burn: +37). 05412_ L-41 Fighter suffers critical hit (Burn). 05414_ Hrd. Light Armor Plating destroyed. 05414_ Critical hit (Burn: +37). 05415_ Lgt. Fission Core destroyed. 05416_ M-28 Smith repairs L-41 Fighter Axe. 05418_ P-60 Hacker resets G-67 Veteran, system corruption cleaned. 05421_ Imp. Heavy Armor Plating destroyed. 05429_ System corrupted: Energy discharge (-38). 05431_ Imp. Carbon-fiber Leg destroyed. 05440_ Manufacturing Mainframe disabled. 05441_ O-16 Technician: "IFF HANDSHAKE FAILED. SECURING TERMINAL." 05442_ Connecting with Terminal... 05442_ ALERT: Suspicious activity at Terminal F017. Dispatching Investigation squad. 05446_ System corrupted: Matter fused (-6). Map ----- +----------------------------------------------------+ | ###????????????# # #???### ###????? | | #????????????# # #???# /#????? | | #????????????# # """" " ##### #????? | | !#????""" ????# # """" """" / T +????? | | #?? # # """" """" ##### #????? | | ] #?????"" " # """" """" #???# #????+ | | #?????"" + / #???## ##??? | | #?????"" # # """" !#????# #??? | | #?????"" ?# # """" #????# #### | | #????? ??# # """" " "" #????# | | ###????##"+#???# # """" "R"" #????# | | ??????? ????? # """ #????# !! """ | | ??????? ????? ################### !! """ | | ???????????? #????????# / !! """ | | ?????????? #????????# """" # | | ????????? #????????? """" * # """ """ | | ??????????#+##########????????? """" # """ """ | | ????????????????????????????????"""" # """ """ | | ????????????????????????????????"""" # | | ????????????????????????????????"""" # """ """ | | ????????????????????????????????"""" # """ """? | | ???????????????????????????????? # """ """ | | ?????????????????????????????????####### | | ????????????????????????##############?# """ """ | | ????????????????????????# #?# """ """? | | ????????????????????????#@ ### """ """ | | ????????????????????????# # | | ????????????????????????# s s#p """ """ | | ????????????????????????# s# """ """? | | ????????????????????????# p """ """? | | ????????????????????????# # | | ????????????????????????# # ! | | ????????????????????????# # ###+# | | ????????????????????????# #########???? | | ????????????????????????# ! #???????????? | | ????????????????????????# #???????????? | | ????????????????????????##############???????????? | | ?????????????????????????????????????????????????? | | ?????????????????????????????????????????????????? | | ?????????????????????????????????????????????????? | | ?????????????????????????????????????????????????? | | ?????????????????????????????????????????????????? | | ?????????????????????????????????????????????????? | | ?????????????????????????????????????????????????? | | ?????????????????????????????????????????????????? | | ?????????????????????????????????????????????????? | | ?????????????????????????????????????????????????? | | ?????????????????????????????????????????????????? | | ?????????????????????????????????????????????????? | | ?????????????????????????????????????????????????? | +----------------------------------------------------+ Best States ------------- Heat Dissipation 64 Energy Generation 25 Energy Capacity 430 Matter Stores 300 Matter Capacity 300 Sight Range 16 Terrain Scan Range 16 Terrain Scan Density 10 Jamming Range 12 Armor Coverage 900 Resistance: EM 15 Evasion (%) 63 Targeting Accuracy 8 Recoil Reduction 2 Particle Charging 15 Item Schematics ----------------- None Robot Schematics ------------------ None Fabricated ------------ Nothing Repaired ---------- Nothing Studied --------- None Alien Tech Used ----------------- None Achievements -------------- Hammer Time Heavy Suspicion Live, Flee, And Rebuild Not Today, Chutes Well Done Challenges ------------ None Game ------ Seed SchematicHugePlatform Manual? 0 Play Time 02:02:22 Cumulative 39.7 hours Start 2026.07.21 @ 21:39:24 End 2026.07.22 @ 21:09:16 Sessions 3 Manual Loads 0 Difficulty Rogue Special Mode None Game No. 32 Rogue 32 Adventurer 0 Explorer 0 Win Type - Total 0 Types 0/0/0/0/0/0/0/0/0/0 Lore% 27 Gallery% 35 Achievement% 23 Wizard Run 0 Options --------- Layout 2 ASCII 0 Keyboard 1 Movement Numpad Keybinds 0 Fullscreen 1 Font 24/Smallcaps Map View 50x44 Zoom Use 0% Tactical HUD 1 Map Filters NONE Filters NONE Steam 1 RUN: 0a509b46-4f33-4284-b7bb-4e610caf92c8